Cogmind - Beta 13 @@@ ROGUE MODE // 2024.04.24 @ 16:47:29 Player: Skysub Result: Destroyed by S-27 Virus with Autogun Performance ------------- Evolutions (5) 2500 Regions Visited (14) 2800 Robots Destroyed (128) 640 Value Destroyed (4330) 4330 Prototype IDs (28) 560 Alien Tech Used (0) 0 Bonus (4299) 4299 TOTAL SCORE: 15129 Bonus ------- High Alert Combat Kills 396 Follower Combat Kills 1931 Entered Garrisons 200 Entered DSFs 500 Network Hubs Disabled 200 Built Enhanced Grunts 300 A7 Reached Mainframe 300 Met R17 at Cetus 500 Friendly Fire -28 Cogmind --------- Core Integrity 0/1000 Matter 212/300 Energy 100/100 System Corruption 2% Temperature Cool (0) Movement Core (50) Location -5/Garrison Parts ------- > --- POWER (2) -------- (None) > --- PROPULSION (5) --- (None) > --- UTILITY (7) ------ Improved Signal Interpreter Advanced Targeting Computer > --- WEAPON (3) ------- (None) > --- INVENTORY (5) ---- Improved Heat Sink Gravity Neutralizer Force Field Relay Coupler [Behemoth] (8) Heavy Flail Peak State ------------ > --- POWER ------------ Quantum Reactor > --- PROPULSION ------- Centrium Heavy Treads Hovering Gravmag-Aerolev Exoskeleton > --- UTILITY ---------- Armored Scrap Engine Advanced Targeting Computer Centrium Medium Armor Plating Improved Hacking Suite Improved Hacking Suite > --- WEAPON ----------- Heavy Laser Advanced Variable Charge Gun Advanced KE Penetrator > --- INVENTORY -------- Coolant Injector Gravity Neutralizer Advanced Sensor Array Missile Launcher Heavy Flail [Rating: 104] Favorites ----------- Power Constructs Engine Heavy Ion Engine Power Core Light Nuclear Core Reactor Constructs Propulsion Aerolev Unit Treads Centrium Heavy Treads Leg Aluminum Leg Wheel Armored Wheel Hover Unit Aerolev Unit Flight Unit Nuclear Pulse Thruster Utility Medium Storage Unit Device Armored Scrap Engine Storage Medium Storage Unit Processor Signal Interpreter Hackware Improved Hacking Suite Protection Improved Light Armor Plating Weapon Improved Assault Rifle Energy Gun Precision Beam Rifle Energy Cannon Advanced Beam Cannon Ballistic Gun Improved Assault Rifle Ballistic Cannon Magnetic Acceleration Cannon Launcher Missile Launcher Impact Weapon Heavy Flail Build | -11 -10 -9 -9 -8 -8 -8 -6 -6 -6 -6 -6 -5 -5 -5 ------- Run | Yrd Mat Mat Min Mat Sto Rec Fac Ext Cet Arc Hub Fac DSF Gar Slots Evolved 10 | . . 2 . 2 . . 4 . . . . 2 . . Power 1 | . . . . . . . . . . . . 1 . . Propulsion 3 | . . 1 . . . . 2 . . . . . . . Utility 5 | . . 1 . 1 . . 2 . . . . 1 . . Weapon 1 | . . . . 1 . . . . . . . . . . Parts Attached 174 | 6 6 17 12 13 47 5 14 18 13 2 5 3 3 10 Power 18 | 1 2 2 1 . 7 1 . 2 1 . 1 . . . Engine 13 | 1 1 2 1 . 5 1 . 2 . . . . . . Core 3 | . 1 . . . 2 . . . . . . . . . Reactor 2 | . . . . . . . . . 1 . 1 . . . Propulsion 36 | 2 1 3 6 1 8 . 4 1 2 . . . . 8 Treads 2 | . . . . . . . . . 2 . . . . . Leg 6 | 2 1 3 . . . . . . . . . . . . Wheel 3 | . . . 3 . . . . . . . . . . . Hover 16 | . . . 3 1 7 . 4 1 . . . . . . Flight 9 | . . . . . 1 . . . . . . . . 8 Utility 38 | 1 1 6 1 5 3 3 7 2 2 . 2 2 1 2 Device 15 | . . 1 1 3 2 1 5 . . . . 1 . 1 Storage 6 | 1 1 . . . . 1 . . 1 . 1 . . 1 Processor 6 | . . 3 . . . 1 1 . . . . 1 . . Hackware 3 | . . . . . . . 1 2 . . . . . . Protection 8 | . . 2 . 2 1 . . . 1 . 1 . 1 . Artifact . | . . . . . . . . . . . . . . . Weapon 82 | 2 2 6 4 7 29 1 3 13 8 2 2 1 2 . Energy Gun 21 | . . 1 . 1 8 . 1 3 4 . . 1 2 . Energy Cannon 1 | . . 1 . . . . . . . . . . . . Ballistic Gun 39 | 2 2 4 2 5 12 . 1 5 3 1 2 . . . Ballistic Cannon 2 | . . . . . . . . 2 . . . . . . Launcher 18 | . . . 2 1 8 1 1 3 1 1 . . . . Special Weapon . | . . . . . . . . . . . . . . . Impact Weapon 1 | . . . . . 1 . . . . . . . . . Slashing Weapon . | . . . . . . . . . . . . . . . Piercing Weapon . | . . . . . . . . . . . . . . . Special Melee Weapon . | . . . . . . . . . . . . . . . Unidentified Prototypes 20 | . . 4 1 2 7 . 2 . 4 . . . . . Corrupted Parts 1 | . . . 1 . . . . . . . . . . . System Corruption 6 | . . . 6 . . . . . . . . . . . Parts Lost 42 | . 2 1 3 1 4 . 1 8 . 1 3 . 4 14 Power 6 | . 1 . . . 1 . . 2 . . 1 . 1 . Propulsion 17 | . 1 . 2 . 1 . . 2 . . . . . 11 Utility 8 | . . 1 . . 1 . 1 . . . 1 . 1 3 Weapon 11 | . . . 1 1 1 . . 4 . 1 1 . 2 . Highest Loss Streak 13 | . 2 1 3 1 2 . 1 3 . 1 2 . 4 13 To Critical Strikes 1 | . . . . . . . . 1 . . . . . . Average Slot Usage (%) 84 | . 83 99 99 97 97 76 87 66 66 65 65 64 51 39 Engine 6 | . 9 11 11 9 7 5 6 4 . . . . . . Leg 6 | . 27 33 4 . . . 1 . . . . . . . Hover 14 | . . . 20 25 26 26 25 7 6 6 6 5 5 4 Device 9 | . . 11 11 9 13 10 12 6 6 6 6 11 11 8 Storage 8 | . 14 11 11 9 9 8 6 6 5 6 6 5 5 3 Processor 7 | . . 8 11 9 9 9 5 6 6 6 6 11 11 11 Hackware 3 | . . . . . . . 6 12 13 13 9 5 1 . Protection 1 | . . 2 . 8 3 . . . . . 2 . . . Energy Gun 4 | . . . . . 10 12 8 7 6 . . 5 4 . Ballistic Gun 14 | . 28 21 19 26 14 3 4 5 13 18 19 11 5 . Naked Turns . | . . . . . . . . . . . . . . . Heaviest Build 56 | 12 19 28 26 28 32 27 27 31 49 49 56 48 48 12 Greatest Support 57 | 20 20 30 40 33 33 30 43 46 57 57 57 57 57 57 Greatest Overweight (x) 10 | . . . 1 . 1 1 1 1 1 . . . 10 1 Average Overweight (x) . | . . . . . . . . . . . . . . . Largest Inventory Capacity 15 | 8 10 10 10 10 10 10 10 10 10 10 15 15 15 15 Average Capacity 9 | 6 8 10 10 10 10 9 10 10 9 10 10 15 15 8 Most Carried 14 | . 10 10 10 10 10 10 10 10 10 10 14 13 13 11 Average Carried 8 | . 3 9 9 9 9 8 9 9 8 9 8 12 12 8 Final Capacity 15 | 8 10 10 10 10 10 10 10 10 10 10 15 15 15 5 Final Carried 14 | . 10 10 10 10 10 10 9 10 10 9 14 12 12 5 Scrap Engine Consumption 71 | . . . . . . 26 17 13 14 1 . . . . Constructs Created 6 | . . . . . . 3 1 . . . 2 . . . Constructs Modified 17 | . . . . . . . 6 8 1 . 2 . . . Class Distribution -------------------- 21% | Mutant 20% | Scavenger-Mutant 15% | Commander-Gunner 12% | Skirmisher 8% | Scavenger-Skirmisher 5% | Gunner 5% | Commander-Skirmisher 3% | Commander-Construct 3% | Hacker-Gunner Dominant Class ---------------- Mutant | -10/Materials Scavenger-Mutant | -9/Materials Scavenger-Mutant | -9/Mines Scavenger-Skirmisher | -8/Materials Skirmisher | -8/Storage Mutant | -8/Recycling Commander-Skirmisher | -6/Factory Commander-Gunner | -6/Extension Commander-Gunner | -6/Cetus Commander-Gunner | -6/Archives Commander-Gunner | -6/Hub_04(d) Scavenger-Skirmisher | -5/Factory Mutant | -5/DSF Mutant | -5/Garrison Resources | -11 -10 -9 -9 -8 -8 -8 -6 -6 -6 -6 -6 -5 -5 -5 ----------- Run | Yrd Mat Mat Min Mat Sto Rec Fac Ext Cet Arc Hub Fac DSF Gar Matter Collected 4203 | 260 321 452 383 379 1035 81 285 369 197 48 372 . . 21 Remotely . | . . . . . . . . . . . . . . . Salvage Created 5548 | . 566 755 50 324 1403 520 514 410 121 178 707 . . . Parts 289 | . 28 48 2 17 82 20 18 14 10 11 39 . . . Haulers Intercepted 15 | . 1 3 . 3 5 . 1 . . . 2 . . . Recyclers Shooed 4 | . 2 . . . 1 1 . . . . . . . . Parts Field Recycled . | . . . . . . . . . . . . . . . Retrieved Matter . | . . . . . . . . . . . . . . . Parts Self-Destructed . | . . . . . . . . . . . . . . . Prevented . | . . . . . . . . . . . . . . . Kills | -11 -10 -9 -9 -8 -8 -8 -6 -6 -6 -6 -6 -5 -5 -5 ------- Run | Yrd Mat Mat Min Mat Sto Rec Fac Ext Cet Arc Hub Fac DSF Gar Combat Hostiles Destroyed 93 | . 12 14 8 3 26 2 8 10 1 2 7 . . . Guns 75 | . 12 14 8 3 15 2 6 5 1 2 7 . . . Cannons 3 | . . . . . . . . 3 . . . . . . AOE 14 | . . . . . 10 . 2 2 . . . . . . Classes Destroyed 13 | . 4 3 2 1 1 1 1 . . . . . . . Worker 5 | . . . 2 . 1 1 . . . . 1 . . . Builder 4 | . . . . . 1 1 . . . . 2 . . . Hauler 15 | . 1 3 . 3 5 . 1 . . . 2 . . . Recycler 7 | . 1 . . . 1 5 . . . . . . . . Operator 3 | . . 1 . . 2 . . . . . . . . . Watcher 9 | . . 2 . . 2 . . . 2 . 3 . . . Swarmer 17 | . 3 3 . . 6 . . 5 . . . . . . Grunt 36 | . 9 6 . 2 11 1 4 1 . . 2 . . . Duelist 2 | . . . . . . . 2 . . . . . . . Sentry 21 | . . 5 . . 8 . 1 4 . 2 1 . . . Hunter 7 | . . . . 1 1 . 1 . . . 4 . . . Programmer 1 | . . . . . . 1 . . . . . . . . Cetus Guard 1 | . . . . . . . . . 1 . . . . . Assembled 8 | . . . 8 . . . . . . . . . . . Best Kill Streak 10 | . 3 7 5 3 8 5 4 4 2 2 10 . . . Combat Bots Only 5 | . 3 3 5 2 5 1 4 4 1 2 4 . . . Max Kills in Single Turn 4 | . 2 2 2 1 4 1 2 2 2 1 2 . . . Gunslinging 1 | . . . 1 . . . . . . . 1 . . . Exploded 3 | . . . . . 3 . 2 2 . . . . . . Melee . | . . . . . . . . . . . . . . . Uniques/NPCs Destroyed . | . . . . . . . . . . . . . . . Combat | -11 -10 -9 -9 -8 -8 -8 -6 -6 -6 -6 -6 -5 -5 -5 -------- Run | Yrd Mat Mat Min Mat Sto Rec Fac Ext Cet Arc Hub Fac DSF Gar Hostile Shots Fired 867 | . 63 87 33 25 110 8 53 182 7 . 52 . 51 196 Missed 307 | . 22 30 8 9 25 1 22 74 1 . 11 . 15 89 Damage Taken 8916 | . 473 694 374 254 1442 108 394 1387 126 18 915 . 1024 1707 Core 1904 | . 50 119 70 17 228 92 93 167 . 6 58 . 186 818 Absorbed by Shields 332 | . . . . . . . . 212 51 . . . . 69 Regen/Repaired (Parts) 650 | . . . . 57 . . 44 282 258 . 9 . . . Core Remaining (%) 66 | 100 80 . 52 . . 38 . . . . 61 . . . Volleys Fired 367 | . 45 56 24 24 94 14 32 34 8 6 23 3 4 . Largest 3 | . 2 2 2 3 3 3 3 3 3 3 3 1 3 . Hottest 175 | . 46 124 56 69 155 109 114 142 175 105 105 35 139 . Shots Fired 846 | . 90 112 41 71 225 19 79 93 24 14 68 3 7 . Gun 752 | . 90 109 33 71 211 19 55 51 23 12 68 3 7 . Cannon 66 | . . 3 . . . . 22 41 . . . . . . Launcher 28 | . . . 8 . 14 . 2 1 1 2 . . . . Special . | . . . . . . . . . . . . . . . Kinetic 586 | . 90 106 33 71 122 4 31 29 11 12 68 3 6 . Thermal 232 | . . 6 . . 89 15 46 63 12 . . . 1 . Explosive 28 | . . . 8 . 14 . 2 1 1 2 . . . . Electromagnetic . | . . . . . . . . . . . . . . . Robot Hit Streak 21 | . 13 21 6 10 18 6 21 17 12 18 9 . 1 . Robot Miss Streak 4 | . 4 3 3 3 3 1 1 2 2 2 3 . 3 . Penetration Max 1 | . . . . . . . . . 1 . 1 . . . Secondary Targets 9 | . 2 2 2 . . . 1 . . . 2 . . . Max Gunslinging Chain 1 | . 1 1 1 . . . 1 . . . 1 . . . Shots Hit Robots 558 | . 57 81 21 46 143 14 63 73 16 8 34 . 2 . Core Hits 250 | . 25 32 19 14 63 10 22 28 9 3 25 . . . Critical Kills 9 | . . . . . . . . . 1 2 6 . . . Critical Parts Destroyed 6 | . . . . 1 1 . . . . . 4 . . . Critical Strikes 25 | . . . . 1 8 . . 3 1 2 10 . . . Burn 9 | . . . . . 7 . . 2 . . . . . . Destroy 15 | . . . . 1 1 . . . 1 2 10 . . . Blast 1 | . . . . . . . . 1 . . . . . . Melee Attacks 5 | . . . . . 5 . . . . . . . . . Impact 5 | . . . . . 5 . . . . . . . . . Slashing . | . . . . . . . . . . . . . . . Piercing . | . . . . . . . . . . . . . . . Sneak Attacks . | . . . . . . . . . . . . . . . Combat Hostiles . | . . . . . . . . . . . . . . . Follow-up Attacks . | . . . . . . . . . . . . . . . Damage Inflicted 11837 | . 802 1246 573 652 3118 285 1314 1796 466 218 1269 . 97 1 Guns 8871 | . 802 1205 294 652 2232 285 791 695 422 218 1196 . 79 . Cannons 1105 | . . 41 . . . . 336 728 . . . . . . Explosions 1720 | . . . 279 . 839 . 187 298 44 . 73 . . . Melee . | . . . . . . . . . . . . . . . Ramming 141 | . . . . . 47 . . 75 . . . . 18 1 Kinetic 6694 | . 802 1169 294 652 1148 35 409 462 230 218 1196 . 79 . Thermal 3354 | . . 77 72 . 1084 250 718 961 192 . . . . . Explosive 1575 | . . . 207 . 839 . 187 298 44 . . . . . Electromagnetic 73 | . . . . . . . . . . . 73 . . . Impact . | . . . . . . . . . . . . . . . Slashing . | . . . . . . . . . . . . . . . Piercing . | . . . . . . . . . . . . . . . Highest Corruption 8 | . . 2 8 2 2 4 2 2 2 2 2 1 2 2 Average Corruption 2 | . . 2 3 2 2 3 2 2 2 2 2 1 1 2 Corruption Purged . | . . . . . . . . . . . . . . . Corruption Blocked . | . . . . . . . . . . . . . . . Effects 61 | . . 4 11 2 11 6 . 7 7 3 6 1 1 2 Message Errors 15 | . . 2 3 . 2 3 . 2 1 . 2 . . . Matter Fused 16 | . . 1 2 . 3 1 . 3 2 1 1 . . 2 Heat Flow Errors 6 | . . 1 1 . . . . . 1 2 . . 1 . Energy Discharges 6 | . . . . . 2 . . 1 2 . 1 . . . Data Loss (minor) 9 | . . . 2 . 2 1 . 1 1 . 1 1 . . Data Loss (major) 3 | . . . 1 1 1 . . . . . . . . . Misfires 1 | . . . . . . 1 . . . . . . . . Alerts 3 | . . . 2 1 . . . . . . . . . . Weapon Failures 2 | . . . . . 1 . . . . . 1 . . . Overload Shots . | . . . . . . . . . . . . . . . Overflow Damage 31 | . . . 6 . 8 . 8 7 . 2 . . . . Projectiles 8 | . . . . . . . 8 . . . . . . . Explosions 19 | . . . 6 . 8 . . 3 . 2 . . . . Melee 4 | . . . . . . . . 4 . . . . . . Knockbacks 1 | . . . . . . . . 1 . . . . . . Impact . | . . . . . . . . . . . . . . . Kinetic 1 | . . . . . . . . 1 . . . . . . Secondary . | . . . . . . . . . . . . . . . Self-Inflicted Damage 299 | . . . 32 . 137 . . . . 19 103 . 8 . Shots 8 | . . . 2 . 4 . . . . 1 1 . . . Rammed 6 | . . . . . 1 . . 2 . . . . 2 1 Targets Rammed 6 | . . . . . 1 . . 2 . . . . 2 1 Kicked . | . . . . . . . . . . . . . . . Crushed . | . . . . . . . . . . . . . . . Highest Temperature 456 | . 15 189 97 63 456 47 193 230 375 281 185 . 232 . Average Temperature 84 | . 3 43 28 23 128 13 58 59 137 80 62 . 83 . Received Heat Transfer 1751 | . 222 288 120 54 558 36 120 207 17 . 69 . . 60 Effects 10 | . . . . . 10 . . . . . . . . . Shutdowns 1 | . . . . . 1 . . . . . . . . . Energy Bleed 4 | . . . . . 4 . . . . . . . . . Interference 4 | . . . . . 4 . . . . . . . . . Matter Decay 1 | . . . . . 1 . . . . . . . . . Siege Activations . | . . . . . . . . . . . . . . . Robots Corrupted . | . . . . . . . . . . . . . . . Combat Hostiles . | . . . . . . . . . . . . . . . Parts Fried 1 | . . . . . . . . . . . 1 . . . Impact Corruptions 1 | . . . . . . . . 1 . . . . . . Robots Melted 1 | . . . . . 1 . . . . . . . . . Combat Hostiles 1 | . . . . . 1 . . . . . . . . . Parts Melted 13 | . . . . . 6 1 2 4 . . . . . . Heat Transferred 7534 | . . 148 100 . 2849 518 1406 2180 333 . . . . . Parts Sabotaged . | . . . . . . . . . . . . . . . Parts Stolen . | . . . . . . . . . . . . . . . Parts Stripped . | . . . . . . . . . . . . . . . Power Chain Reactions . | . . . . . . . . . . . . . . . Alert | -11 -10 -9 -9 -8 -8 -8 -6 -6 -6 -6 -6 -5 -5 -5 ------- Run | Yrd Mat Mat Min Mat Sto Rec Fac Ext Cet Arc Hub Fac DSF Gar Peak Influence 1345 | . 276 319 213 128 985 374 278 842 530 408 1345 610 432 397 Initial 608 | . . 72 124 3 2 369 197 72 219 132 141 608 427 312 Average 280 | . 120 146 101 65 488 274 181 453 357 375 739 608 418 329 Maximum Alert Level 4 | . 1 1 1 . 3 1 1 3 2 2 4 2 2 1 Low Security (%) 41 | 100 72 61 92 100 13 15 40 13 . 6 12 . . . Level 1 39 | . 27 38 7 . 28 84 59 38 96 19 7 . . 100 Level 2 12 | . . . . . 36 . . 27 3 73 28 100 100 . Level 3 6 | . . . . . 21 . . 19 . . 28 . . . Level 4 . | . . . . . . . . . . . 23 . . . Level 5 . | . . . . . . . . . . . . . . . High Security . | . . . . . . . . . . . . . . . Max Security . | . . . . . . . . . . . . . . . Squads Dispatched 23 | . 2 3 1 . 5 . 3 2 . . 6 . 1 . Investigation 6 | . 1 2 . . . . 1 . . . 2 . . . Extermination 1 | . . . . . . . 1 . . . . . . . Reinforcement 15 | . 1 1 1 . 4 . 1 2 . . 4 . 1 . Assault 1 | . . . . . 1 . . . . . . . . . Garrison . | . . . . . . . . . . . . . . . Intercept . | . . . . . . . . . . . . . . . Searches Triggered . | . . . . . . . . . . . . . . . Construction Impeded 3 | . . . 1 . 1 . . . . . 1 . . . Haulers Reinforced 2 | . . . . . . . 1 . . . 1 . . . Active Scanning Responses . | . . . . . . . . . . . . . . . Cargo Convoy Interrupts . | . . . . . . . . . . . . . . . Stealth | -11 -10 -9 -9 -8 -8 -8 -6 -6 -6 -6 -6 -5 -5 -5 --------- Run | Yrd Mat Mat Min Mat Sto Rec Fac Ext Cet Arc Hub Fac DSF Gar Distress Signals 18 | . 2 2 1 1 2 . 1 3 2 . 4 . . . Communications Jammed . | . . . . . . . . . . . . . . . Distress Signals . | . . . . . . . . . . . . . . . Times Spotted 218 | . 19 23 11 12 42 2 14 29 10 2 20 . 6 28 Peak Tracking Total 18 | . 5 4 5 5 6 1 6 6 5 2 5 . 6 18 Tactical Retreats 15 | . . 1 3 1 3 . . 1 . . . . 2 4 Traps | -11 -10 -9 -9 -8 -8 -8 -6 -6 -6 -6 -6 -5 -5 -5 ------- Run | Yrd Mat Mat Min Mat Sto Rec Fac Ext Cet Arc Hub Fac DSF Gar Traps Triggered 19 | . . 2 1 1 3 . 1 3 . . 1 1 1 5 Indirectly . | . . . . . . . . . . . . . . . Trap Hack Attempts . | . . . . . . . . . . . . . . . Triggered . | . . . . . . . . . . . . . . . Disarmed . | . . . . . . . . . . . . . . . Reprogrammed . | . . . . . . . . . . . . . . . Reused . | . . . . . . . . . . . . . . . Traps Extracted . | . . . . . . . . . . . . . . . Installed . | . . . . . . . . . . . . . . . Triggered . | . . . . . . . . . . . . . . . Machines | -11 -10 -9 -9 -8 -8 -8 -6 -6 -6 -6 -6 -5 -5 -5 ---------- Run | Yrd Mat Mat Min Mat Sto Rec Fac Ext Cet Arc Hub Fac DSF Gar Machines Disabled 38 | . . . 4 . 13 . . 1 . 6 14 . . . Max in Single Turn 8 | . . . 3 . 2 . . . . 1 8 . . . Garrison Access 1 | . . . . . 1 . . . . . . . . . Network Hub 1 | . . . . . . . . . . . 1 . . . Machines Repaired . | . . . . . . . . . . . . . . . Machines Dismantled . | . . . . . . . . . . . . . . . Machines Sabotaged . | . . . . . . . . . . . . . . . Overloaded Fab Kills . | . . . . . . . . . . . . . . . Hacking | -11 -10 -9 -9 -8 -8 -8 -6 -6 -6 -6 -6 -5 -5 -5 --------- Run | Yrd Mat Mat Min Mat Sto Rec Fac Ext Cet Arc Hub Fac DSF Gar Machines Accessed 49 | . 5 4 1 2 8 7 3 11 1 . 4 3 . . Terminals 37 | . 4 4 . 1 7 3 2 9 1 . 4 2 . . Fabricators . | . . . . . . . . . . . . . . . Repair Stations 2 | . . . . 1 . . . 1 . . . . . . Recycling Units 6 | . 1 . . . . 4 . 1 . . . . . . Scanalyzers . | . . . . . . . . . . . . . . . Garrison Access 3 | . . . . . 1 . 1 . . . . 1 . . Total Hacks 120 | . 12 12 1 6 21 24 4 22 1 . 12 5 . . Successful 62 | . 2 5 1 4 8 14 1 14 1 . 9 3 . . Failed 58 | . 10 7 . 2 13 10 3 8 . . 3 2 . . Catastrophic 13 | . 2 . . 1 4 1 2 2 . . 1 . . . Database Lockouts . | . . . . . . . . . . . . . . . Manual 44 | . 10 2 . . 6 12 1 7 1 . 5 . . . Terminals 96 | . 10 12 . 3 19 15 2 18 1 . 12 4 . . Fabricators . | . . . . . . . . . . . . . . . Repair Stations 5 | . . . . 3 . . . 2 . . . . . . Recycling Units 13 | . 2 . . . . 9 . 2 . . . . . . Scanalyzers . | . . . . . . . . . . . . . . . Garrison Access 5 | . . . . . 2 . 2 . . . . 1 . . Terminal Hacks 43 | . 1 5 1 2 7 6 1 11 1 . 6 2 . . Part Schematic 2 | . . . . . 1 1 . . . . . . . . Prototype ID Bank 4 | . . . . 1 1 1 . 1 . . . . . . Open Door 9 | . . . 1 . 2 . . 5 1 . . . . . Open DSF 1 | . . . . . . . . . . . . 1 . . Level Access Points 1 | . . . . . . 1 . . . . . . . . Branch Access Points 4 | . . 1 . . 1 1 1 . . . . . . . Emergency Access Points 1 | . . 1 . . . . . . . . . . . . Alert Level 6 | . 1 2 . 1 . . . . . . 1 1 . . Unreport Threat 7 | . . 1 . . . 1 . 3 . . 2 . . . Locate Traps 1 | . . . . . 1 . . . . . . . . . Recall Investigation 1 | . . . . . . . . . . . 1 . . . Recall Reinforcements 1 | . . . . . . . . 1 . . . . . . Hauler Manifests 1 | . . . . . . 1 . . . . . . . . Registered Components 1 | . . . . . 1 . . . . . . . . . Zone Layout 3 | . . . . . . . . 1 . . 2 . . . Fabricator Hacks . | . . . . . . . . . . . . . . . Repair Station Hacks 3 | . . . . 2 . . . 1 . . . . . . Scan Component 2 | . . . . 1 . . . 1 . . . . . . Repair 1 | . . . . 1 . . . . . . . . . . Recycling Unit Hacks 8 | . . . . . . 6 . 2 . . . . . . Report Inventory 5 | . . . . . . 4 . 1 . . . . . . Retrieve Matter 1 | . . . . . . 1 . . . . . . . . Retrieve Components 2 | . . . . . . 1 . 1 . . . . . . Scanalyzer . | . . . . . . . . . . . . . . . Garrison Access Hacks 2 | . . . . . 1 . . . . . . 1 . . Unlock Access 1 | . . . . . . . . . . . . 1 . . Seal Access 1 | . . . . . 1 . . . . . . . . . Unauthorized Hacks 6 | . 1 . . . . 2 . . . . 3 . . . Terminals 3 | . . . . . . . . . . . 3 . . . Detonate 1 | . . . . . . . . . . . 1 . . . Sabotage 2 | . . . . . . . . . . . 2 . . . Fabricators . | . . . . . . . . . . . . . . . Repair Stations . | . . . . . . . . . . . . . . . Recycling Units 3 | . 1 . . . . 2 . . . . . . . . Tunnel 3 | . 1 . . . . 2 . . . . . . . . Scanalyzers . | . . . . . . . . . . . . . . . Garrison Access . | . . . . . . . . . . . . . . . Data Cores Recovered 2 | . . 1 . . . . . . . . 1 . . . Used 1 | . . . . . . . . . . . 1 . . . Hacking Detections 39 | . 4 4 . 1 8 5 3 7 2 . 4 1 . . Full Trace Events 3 | . 1 1 . . . . 1 . . . . . . . Feedback Events . | . . . . . . . . . . . . . . . Feedback Blocked . | . . . . . . . . . . . . . . . Robot Schematics Acquired . | . . . . . . . . . . . . . . . Robots Built . | . . . . . . . . . . . . . . . Authchips . | . . . . . . . . . . . . . . . Time . | . . . . . . . . . . . . . . . Total Robot Build Rating . | . . . . . . . . . . . . . . . Part Schematics Acquired 2 | . . . . . 1 1 . . . . . . . . Parts Built . | . . . . . . . . . . . . . . . Authchips . | . . . . . . . . . . . . . . . Time . | . . . . . . . . . . . . . . . Total Part Build Rating . | . . . . . . . . . . . . . . . Parts Repaired 1 | . . . . 1 . . . . . . . . . . Time 50 | . . . . 50 . . . . . . . . . . Parts Recycled . | . . . . . . . . . . . . . . . Recycled Matter . | . . . . . . . . . . . . . . . Retrieved Matter . | . . . . . . . . . . . . . . . Retrieved Components 10 | . . . . . . 1 . 9 . . . . . . Parts Scanalyzed . | . . . . . . . . . . . . . . . Part Schematics Acquired . | . . . . . . . . . . . . . . . Parts Damaged . | . . . . . . . . . . . . . . . Bothacking | -11 -10 -9 -9 -8 -8 -8 -6 -6 -6 -6 -6 -5 -5 -5 ------------ Run | Yrd Mat Mat Min Mat Sto Rec Fac Ext Cet Arc Hub Fac DSF Gar Used RIF Installer . | . . . . . . . . . . . . . . . Robots Hacked . | . . . . . . . . . . . . . . . Non-combat . | . . . . . . . . . . . . . . . Combat . | . . . . . . . . . . . . . . . Robot Hacks Applied . | . . . . . . . . . . . . . . . Relay Couplers Released . | . . . . . . . . . . . . . . . Fabnet Peak Effective % . | . . . . . . . . . . . . . . . Robots Rewired 26 | . . . . . . 9 . 17 . . . . . . Allies Hacked . | . . . . . . . . . . . . . . . Hacks Repelled . | . . . . . . . . . . . . . . . Allies | -11 -10 -9 -9 -8 -8 -8 -6 -6 -6 -6 -6 -5 -5 -5 -------- Run | Yrd Mat Mat Min Mat Sto Rec Fac Ext Cet Arc Hub Fac DSF Gar Total Allies 38 | . . . . . . 9 . 24 5 . . . . . Largest Group 23 | . . . . . . 9 9 20 23 20 19 . . . Highest-Rated Group 1128 | . . . . . . 163 163 734 1128 1041 889 . . . Highest-Rated Ally 159 | . . . . . . 34 34 159 152 152 96 . . . Total Orders . | . . . . . . . . . . . . . . . Ally Attacks 321 | . . . . . . 3 5 135 48 13 117 . . . Total Damage 9581 | . . . . . . 87 352 3410 1415 306 4011 . . . Kills 62 | . . . . . . 2 . 23 9 2 26 . . . Allies Corrupted 1 | . . . . . . . . . . . 1 . . . Allies Melted . | . . . . . . . . . . . . . . . Intel | -11 -10 -9 -9 -8 -8 -8 -6 -6 -6 -6 -6 -5 -5 -5 ------- Run | Yrd Mat Mat Min Mat Sto Rec Fac Ext Cet Arc Hub Fac DSF Gar Robot Analysis Total . | . . . . . . . . . . . . . . . Derelict Logs Recovered 1 | . . . 1 . . . . . . . . . . . Drone Launches . | . . . . . . . . . . . . . . . Drone Recoveries . | . . . . . . . . . . . . . . . Exploration | -11 -10 -9 -9 -8 -8 -8 -6 -6 -6 -6 -6 -5 -5 -5 ------------- Run | Yrd Mat Mat Min Mat Sto Rec Fac Ext Cet Arc Hub Fac DSF Gar Turns Passed 6260 | 64 525 739 744 420 899 539 576 605 474 122 234 70 65 184 Spaces Moved 5619 | 50 303 443 734 307 744 559 690 485 360 125 321 139 79 280 Core 16 | 6 . . . . . . . . . . . . 1 9 Treads 98 | . . . . . . . . 98 . . . . . . Legs 846 | 44 303 443 56 . . . . . . . . . . . Wheels 8 | . . . 8 . . . . . . . . . . . Hover 4354 | . . . 670 307 744 559 690 327 360 125 321 139 78 34 Flight 297 | . . . . . . . . 60 . . . . . 237 Fastest Speed 34 | 50 120 120 66 66 42 42 37 39 42 42 42 42 42 34 Average Speed 65 | 111 120 120 80 66 56 55 50 44 51 42 42 42 48 54 Slowest Speed 550 | 120 120 120 120 66 106 99 112 102 102 42 42 42 550 120 Overloaded Moves . | . . . . . . . . . . . . . . . Propulsion Burnouts . | . . . . . . . . . . . . . . . Robots Hopped 10 | . . . . . . . . 1 . . . . . 9 Cave-ins Triggered . | . . . . . . . . . . . . . . . Exploration Rate (%) 57 | 3 68 53 100 23 87 97 19 77 85 89 44 5 76 38 Regions Visited 14 Branch Regions 7 Pre-discovered Areas 3 | . 1 . . . . 2 . . . . . . . . Known Exits Taken 7 | . . 1 1 1 1 1 1 . . . . 1 . . Unknown Exits Taken 6 | 1 1 . . . . . . 1 1 1 1 . . . Scrap Searched 1 | . . . 1 . . . . . . . . . . . Spaces Dug 198 | . . . 12 . 18 . . . . . 167 1 . . Terrain Destroyed 419 | . . . 76 . 103 . 9 13 14 16 187 1 . . Melee . | . . . . . . . . . . . . . . . Projectile 29 | . . . . . . . . . . 4 24 1 . . AOE 389 | . . . 76 . 103 . 9 13 14 12 162 . . . Terrain Rammed . | . . . . . . . . . . . . . . . Walls Destroyed . | . . . . . . . . . . . . . . . Machines Disabled . | . . . . . . . . . . . . . . . Actions | -11 -10 -9 -9 -8 -8 -8 -6 -6 -6 -6 -6 -5 -5 -5 --------- Run | Yrd Mat Mat Min Mat Sto Rec Fac Ext Cet Arc Hub Fac DSF Gar Total 7512 | 55 374 548 842 478 1044 777 866 804 629 182 366 146 97 304 Wait 929 | . 9 12 60 121 106 78 119 119 230 50 10 2 9 4 Move 5585 | 49 302 442 733 306 743 558 689 482 359 124 320 138 78 262 Hop 7 | . . . . . . . . 1 . . . . . 6 Pick Up 68 | . 9 6 4 5 12 7 1 9 6 . 7 . 1 1 Fast Attach 68 | 6 2 6 6 5 15 1 6 4 10 . 2 . 2 3 Attach 44 | . 1 6 2 3 7 2 5 6 . 1 2 2 1 6 Detach 34 | . 1 4 2 2 8 6 6 2 1 . 1 . . 1 Swap 62 | . 3 5 4 5 25 2 3 8 3 1 1 1 . 1 Drop 95 | . 2 11 7 7 28 13 5 6 12 . . . . 4 Fire 367 | . 45 56 24 24 94 14 32 34 8 6 23 3 4 . Melee 5 | . . . . . 5 . . . . . . . . . Ram 4 | . . . . . 1 . . . . . . . 2 1 Kick . | . . . . . . . . . . . . . . . Crush 2 | . . . . . . . . 2 . . . . . . Escape Stasis 60 | . . . . . . . . 45 . . . . . 15 Rewire 182 | . . . . . . 96 . 86 . . . . . . Trap . | . . . . . . . . . . . . . . . Miscellaneous . | . . . . . . . . . . . . . . . Route ------- -11/Scrapyard -10/Materials (discovered 3 exits: *Mat x3) -9/Materials (discovered 2 exits: *Mat / *Min) -9/Mines (discovered 2 exits: *Mat x2) -8/Materials -8/Storage (discovered 2 exits: *Fac / *Rec) -8/Recycling -6/Factory (discovered 4 exits: Low x2 / *Ext x2) -6/Extension (discovered 2 exits: *Fac / *Cet) -6/Cetus (discovered 2 exits: *Fac / *Arc) -6/Archives (discovered 3 exits: *Fac / *Hub x2) -6/Hub_04(d) (discovered 3 exits: *Fac x3) -5/Factory (discovered 2 exits: Gar / DSF) -5/DSF -5/Garrison (discovered 1 exit: *Fac) History --------- Turn | Location | Event 29 | -11/Scrapyard | Discovered new exit (range 15) 65 | -11/Scrapyard | Entered Materials 217 | -10/Materials | Discovered new exit (range 16) 319 | -10/Materials | Build established: Mutant 473 | -10/Materials | Discovered new exit (range 16) 541 | -10/Materials | Discovered new exit (range 16) 590 | -10/Materials | Entered another Materials area 590 | -9/Materials | Evolved 2 slots: Propulsion x1, Utility x1 693 | -9/Materials | Identified exit to Mines 1101 | -9/Materials | Discovered new exit (range 9) 1111 | -9/Materials | Identified exit to Materials 1264 | -9/Materials | Build established: Scavenger-Mutant 1329 | -9/Materials | Entered Mines 1341 | -9/Mines | Assembled infested the area 1347 | -9/Mines | Received a Rocket Launcher from a helpful Derelict 1451 | -9/Mines | Discovered exit to Materials (range 8) 1488 | -9/Mines | Lost 3 parts (2n1w) 1517 | -9/Mines | Discovered exit to Materials (range 8) 1819 | -9/Mines | Found a damaged Exp. Sensor Array with a note attached 1821 | -9/Mines | Found Prototype Device 1821 | -9/Mines | Identified Exp. Sensor Array 1911 | -9/Mines | Met a Derelict who couldn't figure out how to use a Trap Extractor 2073 | -9/Mines | Entered Materials 2073 | -8/Materials | Evolved 2 slots: Utility x1, Weapon x1 2074 | -8/Materials | Identified exit to Storage 2210 | -8/Materials | Repaired Cmb. Airjet 2369 | -8/Materials | Build established: Scavenger-Skirmisher 2493 | -8/Materials | Entered Storage 3156 | -8/Storage | Identified exit to Recycling 3212 | -8/Storage | Discovered new exit (range 7) 3215 | -8/Storage | Identified exit to Factory 3218 | -8/Storage | Build established: Skirmisher 3293 | -8/Storage | First assault squad dispatched 3392 | -8/Storage | Entered Recycling 3395 | -8/Recycling | Found Scrap Engine 3465 | -8/Recycling | Identified exit to Factory 3649 | -8/Recycling | Core integrity fell below 50% 3931 | -8/Recycling | Entered Factory 3931 | -6/Factory | Accompanied by 9 allies 3931 | -6/Factory | Evolved 4 slots: Propulsion x2, Utility x2 3964 | -6/Factory | Identified exit to Lower Caves 3964 | -6/Factory | Identified exit to Extension 4150 | -6/Factory | Lost 5 allies 4246 | -6/Factory | Build established: Commander-Skirmisher 4289 | -6/Factory | Lost 3 allies 4461 | -6/Factory | Spotted B-75 Beast 4507 | -6/Factory | Entered Extension 4578 | -6/Extension | Rescued a captive Derelict 4579 | -6/Extension | Rescued a captive Derelict 4621 | -6/Extension | Rescued A7 4621 | -6/Extension | Lost 3 parts (2n1w) 4648 | -6/Extension | Rescued a captive Derelict 4767 | -6/Extension | Spotted B-75 Beast 4776 | -6/Extension | Spotted B-75 Beast 4799 | -6/Extension | Allies destroyed B-75 Beast 4809 | -6/Extension | Allies destroyed B-75 Beast 4823 | -6/Extension | Rescued a captive Derelict 4824 | -6/Extension | Rescued a captive Derelict 4841 | -6/Extension | Lost 3 parts (2p1w) 4841 | -6/Extension | Lost 3 allies 4873 | -6/Extension | Rescued a captive Derelict 5032 | -6/Extension | Discovered new exit (range 10) 5034 | -6/Extension | Discovered new exit (range 6) 5112 | -6/Extension | Entered Cetus 5112 | -6/Cetus | Accompanied by 20 allies (A7) 5117 | -6/Cetus | Acquired a Cetus Manufacturing Module code from A7 5120 | -6/Cetus | Spotted Cetus Guard 5120 | -6/Cetus | Spotted Cetus Guard 5122 | -6/Cetus | Spotted Cetus Guard 5127 | -6/Cetus | Spotted Cetus Guard 5129 | -6/Cetus | Allies destroyed Cetus Guard 5132 | -6/Cetus | Allies destroyed Cetus Guard 5133 | -6/Cetus | Allies destroyed Cetus Guard 5137 | -6/Cetus | Allies destroyed Cetus Guard 5251 | -6/Cetus | Build established: Commander-Gunner 5257 | -6/Cetus | Started Cetus Manufacturing Module 5282 | -6/Cetus | Manufactured an Enhanced Grunt 5290 | -6/Cetus | Escorted A7 to Cetus Mainframe 5307 | -6/Cetus | Manufactured an Enhanced Grunt 5332 | -6/Cetus | Manufactured an Enhanced Grunt 5357 | -6/Cetus | Manufactured an Enhanced Grunt 5382 | -6/Cetus | Manufactured an Enhanced Grunt 5452 | -6/Cetus | Discovered new exit (range 15) 5488 | -6/Cetus | Spotted Cetus Guard 5489 | -6/Cetus | Spotted Cetus Guard 5492 | -6/Cetus | Spotted Cetus Guard 5492 | -6/Cetus | Spotted Cetus Guard 5496 | -6/Cetus | Discovered new exit (range 16) 5497 | -6/Cetus | Destroyed Cetus Guard 5499 | -6/Cetus | Allies destroyed Cetus Guard 5505 | -6/Cetus | Allies destroyed Cetus Guard 5508 | -6/Cetus | Allies destroyed Cetus Guard 5509 | -6/Cetus | Met Revision 17 5538 | -6/Cetus | Lost 3 allies 5586 | -6/Cetus | Entered Archives 5586 | -6/Archives | Accompanied by 20 allies (A7) 5596 | -6/Archives | Received a hacking code to weaken MAIN.C 5607 | -6/Archives | Unable to access archive contents 5609 | -6/Archives | Discovered new exit (range 15) 5621 | -6/Archives | Discovered new exit (range 15) 5640 | -6/Archives | Discovered new exit (range 13) 5708 | -6/Archives | Entered Hub_04(d) 5708 | -6/Hub_04(d) | Accompanied by 19 allies 5732 | -6/Hub_04(d) | Discovered new exit (range 16) 5758 | -6/Hub_04(d) | Discovered new exit (range 5) 5766 | -6/Hub_04(d) | Lost 5 allies 5879 | -6/Hub_04(d) | Discovered new exit (range 14) 5884 | -6/Hub_04(d) | Lost 5 allies 5895 | -6/Hub_04(d) | Network Hub disabled 5932 | -6/Hub_04(d) | Spotted Lightning 5933 | -6/Hub_04(d) | Spotted Lightning 5933 | -6/Hub_04(d) | Spotted Lightning 5942 | -6/Hub_04(d) | Entered Factory 5942 | -5/Factory | Evolved 2 slots: Power x1, Utility x1 5959 | -5/Factory | Identified exit to Garrison 6004 | -5/Factory | Identified exit to DSF 6012 | -5/Factory | Entered DSF 6031 | -5/DSF | Additional patrols routed to DSF 6059 | -5/DSF | Discovered new exit (range 16) 6076 | -5/DSF | Identified exit to Garrison 6077 | -5/DSF | Entered Garrison 6096 | -5/Garrison | Lost 4 parts (1p1u2w) 6155 | -5/Garrison | Triggered checkpoint 6163 | -5/Garrison | Triggered checkpoint 6184 | -5/Garrison | Discovered new exit (range 10) 6187 | -5/Garrison | Identified exit to Factory 6193 | -5/Garrison | Triggered checkpoint 6197 | -5/Garrison | Attempted to access garrison exit controls, blocked by remote lockdown 6212 | -5/Garrison | Triggered checkpoint 6228 | -5/Garrison | Core integrity fell below 50% 6238 | -5/Garrison | Core integrity fell below 20% 6261 | -5/Garrison | Destroyed by S-27 Virus with Autogun Last Messages --------------- Slammed into S-27 Virus. Penetrated by Slug. S-27 Virus destroyed. Acquired VTOL Module. Penetrated by Slug. Slug penetrates Wall. Slug penetrates Y-64 Sentinel. Hovering Gravmag-Aerolev Exoskeleton destroyed. Slug penetrates Reinforced Barrier. VTOL Module destroyed. Triggered Stasis Trap. A bubble of rippling energy engulfs the area. Field strength at 94. Field strength at 88. Field strength at 82. Field strength at 73. Field strength at 60. Field strength at 50. Field strength at 35. Field strength at 29. Map ----- +----------------------------------------------------+ | ?????????????????????????????????????????????????? | | ?????????????????????????????????????????????????? | | ?????????????????????????????????????????????????? | | ?????????????????????????????????????????????????? | | ?????????????????????????????????????????????????? | | ?????????????????????????????????????????????????? | | ?????????????????????????????????????????????????? | | #???????????????????????????????????????????????? | | ??????????????????????????????????????????????? | | ??????????????????????????????????????????????? | | ?????????????????????????????????????????????????? | | ?????????????????????????????????????????????????? | | ####?????????????????????????????????????????????? | | #?????????????????????????????????????????????? | | #?????????????????????????????????????????????? | | #?????????????????????????????????????????????? | | #?????????????????????????????????????????????? | | #?????????????????????????????????????????????? | | #?????????????????????????????????????????????? | | #?????????????????????????????????????????????? | | #?????????????????????????????????????????????? | | #??????????????????????????????#??????????????? | | #?????????????????########### ######?????????? | | #?????????????????# ????????? | | #?????????????????# ^ ????????? | | #?????????????????# @ ????????? | | #?????????????????#sss###T#####???????????????? | | #?????????????????# #???????????????????????? | | #?????????????????# #???????????????????????? | | #?????????????????# s #???????????????????????? | | #?????????????????# #???????????????????????? | | #???????#?????????# #???????????????????????? | | #???????# ????????# #???????????????????????? | | ^ #########++##""""## #???????????????????????? | | #???????????????????????? | | #???????????????????????? | | #???????????????????????? | | ########### ## ## #???????????????????????? | | ????????### ## ## ###?????????????????????? | | ????????# #?????????????????????? | | ????????# #?????????????????????? | | ????????# #?????????????????????? | | ????????# #?????????????????????? | | ????????### ## ## ###?????????????????????? | | ??????????# ## ## ###########?????????????? | | ??????????# ^ #?????????????? | | ??????????# " ^ #?????????????? | | ??????????# "%" ######## #?????????????? | | ??????????## ## " ## ##??????# #?????????????? | | ???????????# ## ?# #???????# #?????????????? | +----------------------------------------------------+ Best States ------------- Heat Dissipation 41 Energy Generation 25 Energy Capacity 350 Matter Stores 300 Matter Capacity 300 Sight Range 16 Robot Scan Range 20 Terrain Scan Density 10 Additional Mass Support 6 Armor Coverage 225 Evasion (%) 63 Targeting Accuracy 8 Recoil Reduction 3 Offensive Hacking 24 Item Schematics ----------------- Hacking Suite | -8/Storage | Hacked System Shield | -8/Recycling | Hacked Robot Schematics ------------------ None Fabricated ------------ Nothing Alien Tech Used ----------------- None Achievements -------------- We Are Legion \\IAMDERELICT Challenges ------------ None Game ------ Seed SpliceCloakSword Manual? 0 Play Time 02:46:55 Cumulative 46.4 hours Start 2024.04.19 @ 16:02:04 End 2024.04.24 @ 16:47:29 Sessions 4 Manual Loads 0 Difficulty Rogue Special Mode None Game No. 34 Rogue 34 Adventurer 0 Explorer 0 Win Type - Total 1 Types 1/0/0/0/0/0/0/0/0 Lore% 28 Gallery% 45 Achievement% 34 Wizard Run 0 Options --------- Layout 1 ASCII 0 Keyboard 1 Movement Numpad Keybinds 0 Fullscreen 1 Font 32/SmallcapsGlow Map View 77x35 Zoom Use 0% Tactical HUD 0 Map Filters NONE Filters NONE Steam 1 RUN: 82e604f6-874d-494c-8268-96a211482285